bitfinex/quotes_SOLUSD_20250611
["timestamp","ask_amount","ask_price","bid_price","bid_amount"]
[1749680511760,22.96071879,159.84,159.81,10.0]
[1749680511965,22.96071879,159.82,159.8,10.0]
[1749680512151,0.14216157,159.84,159.8,10.0]
[1749680512364,27.98,159.83,159.81,10.0]
[1749680512572,26.0,159.81,159.8,10.0]
[1749680512762,77.06071879,159.81,159.8,10.0]
[1749680513294,83.31814948,159.81,159.79,10.0]
[1749680513583,6.25743069,159.81,159.8,10.0]
[1749680514262,29.21814948,159.81,159.8,10.0]
[1749680514457,6.25743069,159.81,159.8,10.0]
[1749680515059,15.64163839,159.83,159.8,10.0]
[1749680515253,22.96071879,159.81,159.79,10.0]
[1749680515561,15.64163839,159.83,159.79,10.0]
[1749680515562,22.96071879,159.8,159.79,10.0]
[1749680516157,26.0,159.82,159.81,10.0]
[1749680516563,48.96071879,159.82,159.81,10.0]
[1749680516769,26.0,159.82,159.81,10.0]
[1749680516974,48.96071879,159.82,159.81,10.0]
[1749680517172,55.21775795,159.82,159.81,10.0]
[1749680517773,55.21775795,159.82,159.8,10.0]
[1749680517970,32.25703916,159.82,159.81,10.0]
[1749680518581,31.26834123,159.91,159.84,10.0]
[1749680518782,6.25312656,159.92,159.91,10.0]
[1749680519089,6.25312656,159.92,159.81,1.5699]
[1749680519090,55.21384535,159.92,159.9,10.0]
[1749680519405,32.25429983,159.89,159.86,10.0]
[1749680519573,32.25429983,159.89,159.88,10.0]
[1749680519574,6.25429983,159.89,159.88,10.0]
[1749680520280,6.25429983,159.89,159.88,32.96071879]
[1749680520494,6.25429983,159.89,159.88,10.0]
[1749680520873,6.25429983,159.89,159.88,32.96071879]
[1749680521084,6.25429983,159.89,159.88,10.0]
[1749680521259,21.8873116,159.91,159.89,10.0]
[1749680521688,22.96071879,159.9,159.89,10.0]
[1749680521990,26.0,159.93,159.92,10.0]
[1749680521991,6.25273557,159.93,159.92,10.0]
[1749680522174,6.25273557,159.93,159.9,20.21954886]
[1749680522175,6.24882834,160.03,160.02,10.0]
[1749680522365,44.83161799,160.03,159.99,10.0]
[1749680522566,26.0,159.97,159.96,10.0]
[1749680522765,28.48,160.02,159.99,10.0]
[1749680522970,22.96071879,160.02,160.0,10.0]
[1749680523186,6.25,160.0,159.99,10.0]
[1749680523383,29.21071879,160.0,159.99,10.0]
[1749680523584,6.25,160.0,159.99,10.0]
[1749680523783,29.21071879,160.0,159.98,10.0]
[1749680524083,22.96071879,159.99,159.98,10.0]
[1749680524390,6.25,160.0,159.98,10.0]
[1749680524566,6.25,160.0,159.99,10.0]
[1749680524760,29.21071879,160.0,159.99,10.0]
[1749680524962,29.21071879,160.0,159.98,10.0]
[1749680525165,29.21110943,159.99,159.98,10.0]
[1749680525593,55.21110943,159.99,159.95,10.0]
[1749680525798,26.0,159.96,159.95,10.0]
[1749680526089,48.96071879,159.96,159.95,10.0]
[1749680527191,55.21228168,159.96,159.95,10.0]
[1749680527903,55.21228168,159.96,159.93,10.0]
[1749680528084,22.96071879,159.94,159.93,10.0]
[1749680528814,76.40047011,159.96,159.9,10.0]
[1749680529118,22.96071879,159.91,159.9,10.0]
[1749680529312,6.2535176,159.91,159.9,10.0]
[1749680529617,26.0,159.89,159.88,10.0]
[1749680530607,48.96071879,159.89,159.87,10.0]
[1749680530805,22.96071879,159.88,159.87,10.0]
[1749680531002,48.96071879,159.88,159.87,10.0]
[1749680531303,6.25508225,159.87,159.86,10.0]
[1749680531885,44.85350667,159.87,159.86,10.0]
[1749680532286,21.89278788,159.87,159.86,10.0]
[1749680532486,44.85350667,159.87,159.86,10.0]
[1749680533206,21.89278788,159.87,159.86,10.0]
[1749680533390,44.85350667,159.87,159.86,10.0]
[1749680533796,21.89278788,159.87,159.86,10.0]
[1749680534206,6.25508225,159.87,159.86,32.96071879]
[1749680534391,6.25508225,159.87,159.86,10.0]
[1749680535286,29.21580104,159.87,159.86,10.0]
[1749680536225,44.85350667,159.87,159.86,10.0]
[1749680537096,44.85350667,159.87,159.85,10.0]
[1749680537303,22.96071879,159.86,159.84,10.0]
[1749680537520,22.96071879,159.85,159.83,10.0]
[1749680537690,22.96071879,159.84,159.83,10.0]
[1749680538219,22.96071879,159.84,159.81,10.0]
[1749680538520,22.96071879,159.82,159.81,10.0]
[1749680539317,29.21775795,159.82,159.81,10.0]
[1749680540033,29.21775795,159.82,159.8,10.0]
[1749680540205,6.25703916,159.82,159.8,10.0]
[1749680540399,22.96071879,159.81,159.8,10.0]
[1749680540733,22.96071879,159.81,159.72,18.64964886]
[1749680540734,21.89963708,159.82,159.81,10.0]
[1749680541306,44.86035587,159.82,159.81,10.0]
[1749680541505,22.18396022,159.82,159.81,10.0]
[1749680541810,26.0,159.8,159.79,10.0]
[1749680542016,48.96071879,159.8,159.79,10.0]
[1749680542520,26.0,159.8,159.79,10.0]
[1749680542690,48.96071879,159.8,159.79,10.0]
[1749680543219,55.21854106,159.8,159.79,10.0]
[1749680544122,47.90237796,159.8,159.79,10.0]
[1749680544299,70.86309675,159.8,159.79,10.0]
[1749680544623,6.25782227,159.8,159.79,10.0]
[1749680545295,23.00230075,159.83,159.72,20.25434886]
[1749680545296,21.89963708,159.82,159.81,10.0]
[1749680545913,44.86035587,159.82,159.81,10.0]
[1749680546132,21.89963708,159.82,159.81,10.0]
[1749680546294,44.86035587,159.82,159.8,10.0]
[1749680546495,25.23635771,159.81,159.78,10.0]
[1749680546799,2.27548511,159.8,159.79,10.0]
[1749680547011,25.23613511,159.8,159.79,10.0]
[1749680547200,25.23616376,159.8,159.79,10.0]
[1749680547396,70.86309675,159.8,159.75,10.0]
[1749680547715,22.96071879,159.76,159.75,10.0]
[1749680548721,29.48,159.79,159.78,10.0]
[1749680548899,31.75525805,159.79,159.78,10.0]
[1749680549092,31.75526969,159.79,159.78,10.0]
[1749680549288,15.64455569,159.8,159.79,10.0]
[1749680549715,38.60527448,159.8,159.79,10.0]
[1749680550710,15.64455569,159.8,159.79,10.0]
[1749680551131,29.21775795,159.82,159.81,10.0]
[1749680551328,6.25703916,159.82,159.81,10.0]
[1749680552345,29.21775795,159.82,159.79,10.0]
[1749680552515,21.89963708,159.82,159.79,10.0]
[1749680552709,22.96071879,159.8,159.79,10.0]
[1749680553243,21.89963708,159.82,159.81,10.0]
[1749680553440,44.86035587,159.82,159.81,10.0]
[1749680554109,44.86035587,159.82,159.79,10.0]
[1749680554312,22.96071879,159.8,159.79,10.0]
[1749680554711,71.92143758,159.8,159.75,10.0]
[1749680554912,22.96071879,159.76,159.75,10.0]
[1749680555146,26.0,159.8,159.79,10.0]
[1749680555448,6.2582139,159.79,159.78,10.0]
[1749680555610,29.21893269,159.79,159.78,10.0]
[1749680555807,6.2582139,159.79,159.78,10.0]
[1749680557439,44.86172622,159.81,159.8,10.0]
[1749680557643,21.90100743,159.81,159.8,10.0]
[1749680557816,44.86172622,159.81,159.8,10.0]
[1749680558247,21.90100743,159.81,159.8,10.0]
[1749680558625,44.86172622,159.81,159.8,10.0]
[1749680559743,21.90100743,159.81,159.8,10.0]
[1749680560638,6.25743069,159.81,159.8,10.0]
[1749680561044,6.25743069,159.81,159.8,32.96071879]
[1749680561423,6.25703916,159.82,159.8,32.96071879]
[1749680561838,6.25703916,159.82,159.8,10.0]
[1749680562038,6.25703916,159.82,159.8,32.96071879]
[1749680562245,6.25703916,159.82,159.81,10.0]
[1749680566038,6.25703916,159.82,159.81,32.96071879]
[1749680566350,15.63821314,159.87,159.82,10.0]
[1749680566656,15.63821314,159.87,159.81,22.96071879]
[1749680566657,6.25547353,159.86,159.85,10.0]
[1749680566818,6.25547353,159.86,159.85,32.96071879]
[1749680567028,53.15683627,159.91,159.85,32.96071879]
[1749680567358,22.96071879,159.9,159.89,10.0]
[1749680567719,22.96071879,159.9,159.88,10.0]
[1749680567924,22.96071879,159.9,159.89,10.0]
[1749680567925,29.98,159.9,159.89,10.0]
[1749680568160,52.94071879,159.9,159.87,10.0]
[1749680568340,29.98,159.9,159.87,10.0]
[1749680568544,22.96071879,159.88,159.87,10.0]
[1749680568848,22.96071879,159.88,159.86,10.0]
[1749680569053,22.96071879,159.87,159.86,10.0]
[1749680569344,6.25508225,159.87,159.86,10.0]
[1749680569555,29.21580104,159.87,159.86,10.0]
[1749680570138,21.8900494,159.89,159.86,10.0]
[1749680570337,22.96071879,159.87,159.86,10.0]
[1749680570644,52.86071879,159.87,159.82,10.0]
[1749680570846,22.96071879,159.83,159.82,10.0]
[1749680571663,29.9,159.87,159.85,10.0]
[1749680571833,22.96071879,159.86,159.85,10.0]
[1749680572238,6.25586487,159.85,159.82,10.0]
[1749680572541,6.25586487,159.85,159.84,10.0]
[1749680572930,21.89552705,159.85,159.84,10.0]
[1749680573532,44.85624584,159.85,159.84,10.0]
[1749680573836,21.89552705,159.85,159.84,10.0]
[1749680574030,38.60038097,159.85,159.84,10.0]
[1749680574839,15.63966218,159.85,159.84,10.0]
[1749680575054,38.60038097,159.85,159.84,10.0]
[1749680575761,15.63966218,159.85,159.84,10.0]
[1749680576060,21.89552705,159.85,159.84,10.0]
[1749680576356,44.85624584,159.85,159.84,10.0]
[1749680577353,21.89552705,159.85,159.84,10.0]
[1749680577663,6.25586487,159.85,159.84,10.0]
[1749680578138,38.59834761,159.88,159.87,10.0]
[1749680578640,15.63762882,159.88,159.87,10.0]
[1749680580242,21.89231983,159.88,159.87,10.0]
[1749680580770,12.26619226,159.97,159.94,10.0]
[1749680581077,6.25078134,159.98,159.97,10.0]
[1749680581842,26.0,159.96,159.9,10.0]
[1749680582059,26.0,159.96,159.93,10.0]
[1749680582060,29.82,159.95,159.93,10.0]
[1749680582268,29.21306341,159.94,159.93,10.0]
[1749680582566,33.74594751,159.94,159.93,10.0]
[1749680583155,49.37680908,159.94,159.93,10.0]
[1749680583473,74.80392498,159.94,159.9,10.0]
[1749680583696,74.80392498,159.94,159.86,1.5622]
[1749680583697,51.84320619,159.94,159.91,10.0]
[1749680583846,51.84320619,159.94,159.93,10.0]
[1749680584040,56.37554735,159.94,159.93,10.0]
[1749680584568,21.88320619,159.94,159.93,10.0]
[1749680585164,44.84392498,159.94,159.93,10.0]
[1749680586961,21.88320619,159.94,159.93,10.0]
[1749680588206,44.84392498,159.94,159.93,10.0]
[1749680588505,26.0,159.92,159.91,10.0]
[1749680588687,48.96071879,159.92,159.91,10.0]
[1749680588889,55.21384535,159.92,159.91,10.0]
[1749680589309,32.25312656,159.92,159.9,10.0]
[1749680589503,32.25312656,159.92,159.91,10.0]
[1749680590001,0.42648471,159.91,159.87,10.0]
[1749680590207,26.0,159.88,159.86,10.0]
[1749680590389,55.8,159.87,159.85,10.0]
[1749680590596,22.96071879,159.86,159.85,10.0]
[1749680590791,22.96071879,159.86,159.84,10.0]
[1749680590989,6.25547353,159.86,159.85,10.0]
[1749680591401,6.25547353,159.86,159.83,10.0]
[1749680591402,6.68195824,159.86,159.83,10.0]
[1749680591604,29.78,159.85,159.84,10.0]
[1749680591796,29.78,159.85,159.83,10.0]
[1749680592102,22.96071879,159.84,159.83,10.0]
[1749680593099,29.21697504,159.84,159.83,10.0]
[1749680593514,29.21697504,159.84,159.82,10.0]
[1749680593818,52.72071879,159.83,159.82,10.0]
[1749680594329,26.0,159.8,159.79,10.0]
[1749680594619,21.89689689,159.84,159.83,10.0]
[1749680594821,77.63689689,159.84,159.83,10.0]
[1749680595020,47.89689689,159.84,159.83,10.0]
[1749680595397,70.85761568,159.84,159.83,10.0]
[1749680596614,47.89689689,159.84,159.83,10.0]
[1749680596816,21.89689689,159.84,159.83,10.0]
[1749680597436,44.85761568,159.84,159.83,10.0]
[1749680598825,74.63761568,159.84,159.82,10.0]
[1749680599028,22.96071879,159.83,159.81,10.0]
[1749680599213,85.03775795,159.82,159.81,10.0]
[1749680599400,62.07703916,159.82,159.81,10.0]
[1749680599602,62.07703916,159.82,159.8,10.0]
[1749680599603,85.03775795,159.82,159.8,10.0]
[1749680599925,26.0,159.79,159.78,10.0]
[1749680600099,48.96071879,159.79,159.77,10.0]
[1749680600298,52.92071879,159.78,159.77,10.0]
[1749680601035,52.92071879,159.78,159.76,10.0]
[1749680601223,29.21971609,159.77,159.76,10.0]
[1749680601623,44.86720936,159.77,159.76,10.0]
[1749680601812,26.0,159.75,159.74,10.0]
[1749680602013,78.90071879,159.75,159.74,10.0]
[1749680602403,55.94,159.75,159.74,10.0]
[1749680602618,78.90071879,159.75,159.74,10.0]
[1749680602805,78.90071879,159.75,159.73,10.0]
[1749680603005,78.90071879,159.75,159.71,10.0]
[1749680603006,26.0,159.72,159.71,10.0]
[1749680603205,29.22167546,159.72,159.71,10.0]
[1749680603421,6.26095667,159.72,159.71,10.0]
[1749680603625,6.26095667,159.72,159.64,20.31534886]
[1749680603626,6.26095667,159.72,159.7,10.0]
[1749680603830,6.26095667,159.72,159.71,10.0]
[1749680604326,29.22167546,159.72,159.7,10.0]
[1749680604531,22.96071879,159.71,159.7,10.0]
[1749680604912,53.00071879,159.71,159.7,10.0]
[1749680605115,30.04,159.71,159.69,10.0]
[1749680605314,23.24504193,159.7,159.69,10.0]
[1749680605613,23.3872035,159.7,159.69,10.0]
[1749680606218,26.0,159.67,159.66,10.0]
[1749680606421,56.12,159.67,159.66,10.0]
[1749680606728,56.12,159.67,159.65,10.0]
[1749680607038,56.12,159.67,159.66,10.0]
[1749680607231,48.96071879,159.67,159.66,10.0]
[1749680607443,32.26291726,159.67,159.66,10.0]
[1749680607612,32.26291726,159.67,159.56,10.0]
[1749680607613,32.26291726,159.67,159.65,10.0]
[1749680607810,53.16071879,159.66,159.65,10.0]
[1749680608110,47.92021042,159.67,159.65,10.0]
[1749680608312,21.92021042,159.67,159.66,10.0]
[1749680608608,47.92021042,159.67,159.66,10.0]
[1749680608918,70.88092921,159.67,159.66,10.0]
[1749680609317,47.92021042,159.67,159.66,10.0]
[1749680609519,70.88092921,159.67,159.66,10.0]
[1749680609823,6.26291726,159.67,159.66,10.0]
[1749680611329,6.26213288,159.69,159.66,10.0]
[1749680611530,6.26213288,159.69,159.68,10.0]
[1749680612022,8.68,159.7,159.68,32.96071879]
[1749680612232,8.68,159.7,159.69,32.96071879]
[1749680612430,8.68,159.7,159.69,10.0]
[1749680612431,14.94174076,159.7,159.69,10.0]
[1749680612737,14.94174076,159.7,159.63,10.0]
[1749680612738,26.0,159.67,159.63,10.0]
[1749680612939,22.96071879,159.64,159.63,10.0]
[1749680613141,30.46,159.64,159.63,10.0]
[1749680613436,36.72409421,159.64,159.63,10.0]
[1749680613618,59.684813,159.64,159.63,10.0]
[1749680615144,36.72409421,159.64,159.63,10.0]
[1749680615322,59.684813,159.64,159.63,10.0]
[1749680615517,59.684813,159.64,159.55,10.0]
[1749680615518,26.0,159.57,159.55,10.0]
[1749680615845,26.0,159.57,159.5,10.0]
[1749680615846,26.0,159.53,159.5,10.0]
[1749680616035,22.96071879,159.51,159.5,10.0]
[1749680616417,30.4,159.52,159.51,10.0]
[1749680616843,53.36071879,159.52,159.51,10.0]
[1749680617013,26.0,159.53,159.51,10.0]
[1749680617224,30.38,159.55,159.54,10.0]
[1749680617747,36.6476277,159.55,159.54,10.0]
[1749680617916,59.60834649,159.55,159.54,10.0]
[1749680618617,6.2676277,159.55,159.54,10.0]
[1749680619023,15.66709655,159.58,159.54,32.96071879]
[1749680619224,15.66709655,159.58,159.57,10.0]
[1749680619528,21.93354597,159.58,159.57,10.0]
[1749680620027,6.26644942,159.58,159.57,10.0]
[1749680620842,29.22716821,159.58,159.57,10.0]
[1749680621260,6.26644942,159.58,159.57,10.0]
[1749680622129,29.22716821,159.58,159.57,10.0]
[1749680623152,6.26644942,159.58,159.57,10.0]
[1749680623526,6.26644942,159.58,159.57,32.96071879]
[1749680623766,6.26644942,159.58,159.57,10.0]
[1749680623944,6.26644942,159.58,159.57,32.96071879]
[1749680624451,12.12708874,159.59,159.57,32.96071879]
[1749680624452,18.3932595,159.59,159.57,32.96071879]
[1749680624755,6.26617076,159.59,159.58,10.0]
[1749680624996,6.26617076,159.59,159.58,32.96071879]
[1749680625462,6.26617076,159.59,159.58,10.0]
[1749680625643,21.92898603,159.61,159.58,10.0]
[1749680625841,21.92898603,159.61,159.6,10.0]
[1749680626346,6.26527159,159.61,159.6,10.0]
[1749680626550,6.26492498,159.62,159.61,10.0]
[1749680626752,6.26330953,159.66,159.65,10.0]
[1749680627764,15.65798593,159.67,159.63,22.96071879]
[1749680627765,15.65798593,159.67,159.66,10.0]
[1749680629242,38.61870472,159.67,159.66,10.0]
[1749680629553,15.65798593,159.67,159.66,10.0]
[1749680631254,44.88162198,159.67,159.66,10.0]
[1749680631856,21.92090319,159.67,159.66,10.0]
[1749680632159,44.88162198,159.67,159.66,10.0]
[1749680632359,21.92090319,159.67,159.66,10.0]
[1749680632530,44.88162198,159.67,159.66,10.0]
[1749680632745,70.88162198,159.67,159.65,10.0]
[1749680633061,53.00071879,159.66,159.65,10.0]
[1749680633243,59.26402832,159.66,159.65,10.0]
[1749680633554,36.30330953,159.66,159.65,10.0]
[1749680633770,59.26402832,159.66,159.65,10.0]
[1749680634741,36.30330953,159.66,159.65,10.0]
[1749680634962,59.26402832,159.66,159.65,10.0]
[1749680635273,26.0,159.64,159.63,10.0]
[1749680635443,55.98,159.64,159.63,10.0]
[1749680635641,78.94071879,159.64,159.63,10.0]
[1749680636050,55.98,159.64,159.63,10.0]
[1749680636270,78.94071879,159.64,159.63,10.0]
[1749680636770,55.98,159.64,159.63,10.0]
[1749680636966,78.94071879,159.64,159.63,10.0]
[1749680637169,85.204813,159.64,159.63,10.0]
[1749680637771,59.204813,159.64,159.63,10.0]
[1749680638072,6.26409421,159.64,159.63,10.0]
[1749680639477,6.26409421,159.64,159.63,32.96071879]
[1749680641356,15.65827383,159.66,159.63,32.96071879]
[1749680641551,15.65827383,159.66,159.65,22.96071879]
[1749680641760,6.26252505,159.68,159.67,10.0]
[1749680642064,6.26174076,159.7,159.69,10.0]
[1749680642575,14.6014837,159.71,159.7,10.0]
[1749680642782,8.34,159.71,159.7,32.96071879]
[1749680642989,14.60134869,159.71,159.7,10.0]
[1749680643157,4.54394044,159.76,159.75,10.0]
[1749680643355,44.39782227,159.8,159.79,10.0]
[1749680643754,113.97463573,159.8,159.77,10.0]
[1749680643955,4.53983612,159.79,159.75,10.0]
[1749680644276,26.0,159.74,159.72,10.0]
[1749680644580,52.74071879,159.73,159.71,10.0]
[1749680644781,22.96071879,159.72,159.71,10.0]
[1749680645084,22.96071879,159.72,159.68,10.0]
[1749680645381,22.96071879,159.72,159.65,10.0]
[1749680645382,21.91883767,159.68,159.65,10.0]
[1749680645588,22.96071879,159.66,159.64,10.0]
[1749680645759,29.74,159.67,159.66,10.0]
[1749680645955,52.70071879,159.67,159.66,10.0]
[1749680647180,52.70071879,159.67,159.65,10.0]
[1749680647374,29.22402832,159.66,159.65,10.0]
[1749680647583,26.0,159.64,159.62,10.0]
[1749680647887,26.0,159.64,159.63,10.0]
[1749680648181,55.68,159.64,159.63,10.0]
[1749680648566,29.68,159.64,159.63,10.0]
[1749680649178,52.64071879,159.64,159.63,10.0]
[1749680649488,35.94409421,159.64,159.63,10.0]
[1749680649859,6.26409421,159.64,159.63,10.0]
[1749680650777,6.26017278,159.74,159.73,10.0]
[1749680650987,6.26017278,159.74,159.73,32.96071879]
[1749680651151,6.26017278,159.74,159.73,10.0]
[1749680651375,21.90882361,159.76,159.73,10.0]
[1749680651798,21.90882361,159.76,159.75,10.0]
[1749680652675,38.27786503,159.76,159.75,10.0]
[1749680652871,6.25938908,159.76,159.75,10.0]
[1749680656977,26.0,159.74,159.69,10.0]
[1749680657174,55.48,159.73,159.69,10.0]
[1749680657393,26.0,159.7,159.69,10.0]
[1749680657570,29.5,159.7,159.69,10.0]
[1749680657775,26.0,159.73,159.72,10.0]
[1749680657976,87.49847595,159.73,159.72,10.0]
[1749680658184,93.75904065,159.73,159.72,10.0]
[1749680660126,93.75904065,159.73,159.71,10.0]
[1749680660285,61.7405647,159.73,159.72,10.0]
[1749680660485,93.75904065,159.73,159.72,10.0]
[1749680660909,61.7405647,159.73,159.72,10.0]
[1749680661111,93.75904065,159.73,159.72,10.0]
[1749680661517,6.2605647,159.73,159.72,10.0]
[1749680663709,6.2605647,159.73,159.72,42.01847595]
[1749680664014,6.26030689,159.74,159.73,10.0]
[1749680664307,15.6484727,159.76,159.75,10.0]
[1749680664506,6.2589973,159.77,159.76,10.0]
[1749680665032,6.2589973,159.77,159.76,42.01847595]
[1749680665509,6.25743069,159.81,159.8,10.0]
[1749680666544,21.90046149,159.82,159.81,10.0]
[1749680667142,6.25703916,159.82,159.81,10.0]
[1749680667306,7.98,159.83,159.82,10.0]
[1749680667507,6.25654416,159.84,159.82,10.0]
[1749680667508,6.25654416,159.84,159.82,42.01847595]
[1749680667727,6.25654416,159.84,159.83,42.01847595]
[1749680668539,53.16694843,159.88,159.87,10.0]
[1749680668748,85.18542438,159.88,159.87,10.0]
[1749680669346,53.16694843,159.88,159.87,10.0]
[1749680669539,85.18542438,159.88,159.87,10.0]
[1749680670342,26.0,159.85,159.83,10.0]
[1749680670548,26.0,159.85,159.7,10.0]
[1749680670549,26.0,159.81,159.78,10.0]
[1749680670728,157.75932996,159.84,159.79,10.0]
[1749680670729,55.28,159.8,159.79,10.0]
[1749680671042,29.28,159.8,159.79,10.0]
[1749680671245,52.25882219,159.8,159.79,10.0]
[1749680671742,56.79205237,159.8,159.79,10.0]
[1749680671924,56.79185519,159.8,159.77,10.0]
[1749680672121,56.79185519,159.8,159.68,33.9125]
[1749680672122,22.97882219,159.78,159.76,10.0]
[1749680672323,22.97882219,159.77,159.75,10.0]
[1749680672629,58.55821127,159.76,159.75,10.0]
[1749680672835,51.22786178,159.76,159.72,10.0]
[1749680673041,51.22786178,159.76,159.75,10.0]
[1749680673213,83.25828336,159.76,159.75,10.0]
[1749680673411,83.25828336,159.76,159.73,10.0]
[1749680673606,32.03042158,159.74,159.73,10.0]
[1749680673817,61.37042158,159.74,159.72,10.0]
[1749680674020,29.34,159.74,159.73,10.0]
[1749680674224,61.37042158,159.74,159.73,10.0]
[1749680674643,67.63059436,159.74,159.73,10.0]
[1749680675827,35.60017278,159.74,159.73,10.0]
[1749680676142,67.63059436,159.74,159.73,10.0]
[1749680676343,35.60017278,159.74,159.73,10.0]
[1749680676858,38.29059436,159.74,159.73,10.0]
[1749680677155,53.94102631,159.74,159.71,10.0]
[1749680677357,32.03042158,159.72,159.71,10.0]
[1749680677660,29.32,159.73,159.71,10.0]
[1749680677852,29.32,159.73,159.72,10.0]
[1749680678029,61.35042158,159.73,159.72,10.0]
[1749680678343,61.35042158,159.73,159.71,10.0]
[1749680678565,21.91472042,159.71,159.68,10.0]
[1749680678722,29.64,159.7,159.69,10.0]
[1749680679135,29.64,159.7,159.68,10.0]
[1749680679636,29.64,159.7,159.63,1.5043]
[1749680679637,4.53286462,159.69,159.67,10.0]
[1749680679841,61.65042158,159.68,159.67,10.0]
[1749680680652,67.91294663,159.68,159.67,10.0]
[1749680681148,35.88252505,159.68,159.67,10.0]
[1749680681742,67.91294663,159.68,159.67,10.0]
[1749680682835,67.91294663,159.68,159.66,10.0]
[1749680683037,67.91294663,159.68,159.67,10.0]
[1749680683231,35.88252505,159.68,159.67,10.0]
[1749680683432,6.26252505,159.68,159.67,10.0]
[1749680683646,38.29294663,159.68,159.67,10.0]
[1749680683826,6.26252505,159.68,159.67,10.0]
[1749680684352,38.29294663,159.68,159.67,10.0]
[1749680684856,32.03042158,159.68,159.67,10.0]
[1749680685328,61.75042158,159.68,159.65,10.0]
[1749680685528,21.91746508,159.69,159.68,10.0]
[1749680685727,51.61746508,159.69,159.68,10.0]
[1749680686143,21.91746508,159.69,159.68,10.0]
[1749680686432,38.29255446,159.69,159.68,10.0]
[1749680689026,6.26213288,159.69,159.68,10.0]
[1749680689230,38.29255446,159.69,159.68,10.0]
[1749680691129,6.26213288,159.69,159.68,10.0]
[1749680692439,6.26213288,159.69,159.68,42.03042158]
[1749680692836,6.26213288,159.69,159.68,10.0]
[1749680693060,15.65309079,159.72,159.71,10.0]
[1749680693061,21.91404746,159.72,159.71,10.0]
[1749680693486,44.91184331,159.72,159.71,10.0]
[1749680693767,21.91404746,159.72,159.71,10.0]
[1749680694058,44.91184331,159.72,159.71,10.0]
[1749680694231,21.91404746,159.72,159.71,10.0]
[1749680694852,6.26095667,159.72,159.71,10.0]
[1749680695058,44.90790834,159.75,159.74,10.0]
[1749680695447,21.91011249,159.75,159.74,10.0]
[1749680695647,6.2597809,159.75,159.74,10.0]
[1749680697864,8.12,159.76,159.74,10.0]
[1749680698039,6.25953531,159.76,159.75,10.0]
[1749680698941,21.90565488,159.78,159.75,10.0]
[1749680699364,21.90565488,159.78,159.77,10.0]
[1749680700368,6.25860558,159.78,159.77,10.0]
[1749680700573,21.8972811,159.84,159.83,10.0]
[1749680700950,6.25625625,159.84,159.83,10.0]
[1749680701151,44.89469274,159.84,159.81,10.0]
[1749680701377,21.89689689,159.84,159.83,10.0]
[1749680701578,21.89689689,159.84,159.81,10.0]
[1749680701873,21.89689689,159.84,159.83,10.0]
[1749680702977,15.64064064,159.84,159.83,10.0]
[1749680703268,29.25326938,159.86,159.85,10.0]
[1749680703771,29.25326938,159.86,159.84,10.0]
[1749680703971,29.25326938,159.86,159.85,10.0]
[1749680704156,26.0,159.84,159.83,10.0]
[1749680704359,48.99779585,159.84,159.83,10.0]
[1749680704557,48.99779585,159.84,159.82,10.0]
[1749680704761,26.0,159.84,159.83,10.0]
[1749680704957,55.2540521,159.84,159.83,10.0]
[1749680705873,32.25625625,159.84,159.83,10.0]